bitfinex/quotes_BTCUSD_20250110
["timestamp","ask_amount","ask_price","bid_price","bid_amount"]
[1736507643942,0.0005,95116.0,95115.0,0.03077463]
[1736507644145,0.0005,95116.0,95115.0,0.02345463]
[1736507644401,0.0005,95116.0,95115.0,0.03077463]
[1736507645017,0.0005,95116.0,95115.0,0.02977463]
[1736507645590,0.0005,95116.0,95115.0,0.03077463]
[1736507646337,0.0005,95116.0,95115.0,0.02977463]
[1736507646842,0.0005,95116.0,95115.0,0.03077463]
[1736507648019,0.0005,95116.0,95115.0,0.02977463]
[1736507648436,0.0005,95116.0,95115.0,0.03077463]
[1736507649040,0.0005,95116.0,95115.0,0.02345463]
[1736507652071,0.0005,95116.0,95115.0,0.02245463]
[1736507652266,0.0005,95116.0,95115.0,0.02145463]
[1736507652427,0.0005,95116.0,95115.0,0.02245463]
[1736507652623,0.0005,95116.0,95115.0,0.00284213]
[1736507654528,0.0005,95116.0,95115.0,0.02345505]
[1736507664833,0.0005,95116.0,95115.0,0.00284213]
[1736507665176,0.0005,95116.0,95115.0,0.00184213]
[1736507665601,0.67285692,95116.0,95115.0,0.00284213]
[1736507666703,0.67285692,95116.0,95115.0,0.00184213]
[1736507667138,0.6087,95116.0,95115.0,0.00184213]
[1736507667541,0.6087,95116.0,95115.0,0.00084213]
[1736507667712,0.6127,95116.0,95115.0,0.00084213]
[1736507667912,0.5644,95116.0,95115.0,0.00084213]
[1736507668094,0.4789,95116.0,95115.0,0.00084213]
[1736507668291,0.4839,95116.0,95115.0,0.00084213]
[1736507668538,0.4829,95116.0,95115.0,0.00084213]
[1736507668767,0.4779,95116.0,95115.0,0.00084213]
[1736507669000,0.4829,95116.0,95115.0,0.00084213]
[1736507671726,0.5637,95116.0,95115.0,0.00084213]
[1736507671902,0.57582905,95116.0,95115.0,0.00084213]
[1736507673392,0.5637,95116.0,95115.0,0.00084213]
[1736507680341,0.4829,95116.0,95115.0,0.00084213]
[1736507688794,0.48344939,95116.0,95115.0,0.00084213]
[1736507689181,0.56404939,95116.0,95115.0,0.00084213]
[1736507689971,0.5635,95116.0,95115.0,0.00084213]
[1736507691772,0.66779976,95116.0,95115.0,0.00084213]
[1736507691979,0.66779976,95116.0,95110.0,0.01251233]
[1736507692202,0.36028,95111.0,95110.0,0.01251233]
[1736507694808,0.36228,95111.0,95110.0,0.01251233]
[1736507696837,0.36146062,95111.0,95110.0,0.01251233]
[1736507697445,0.68886062,95111.0,95110.0,0.01251233]
[1736507698630,0.69911327,95111.0,95110.0,0.01251233]
[1736507701389,0.69811901,95111.0,95110.0,0.01251233]
[1736507702799,0.48965265,95111.0,95110.0,0.01251233]
[1736507703022,0.002,95111.0,95110.0,0.24371209]
[1736507703437,0.002,95111.0,95110.0,0.29932907]
[1736507703680,0.002,95111.0,95110.0,0.26658286]
[1736507704071,0.002,95111.0,95110.0,0.27725552]
[1736507704657,0.0005,95116.0,95112.0,0.077]
[1736507704853,0.0005,95116.0,95114.0,0.077]
[1736507705071,0.0005,95116.0,95115.0,0.13447008]
[1736507705450,0.0005,95116.0,95115.0,0.4726923]
[1736507705658,0.0005,95116.0,95115.0,0.48144247]
[1736507705882,0.0005,95116.0,95115.0,0.58144247]
[1736507706057,0.0015,95116.0,95115.0,0.58144247]
[1736507706444,0.0005,95116.0,95115.0,0.51412331]
[1736507706716,0.0005,95116.0,95115.0,0.47264108]
[1736507707874,0.0015,95116.0,95115.0,0.47464108]
[1736507708049,0.0015,95116.0,95115.0,0.47264108]
[1736507708295,0.0005,95116.0,95115.0,0.47164108]
[1736507708507,0.0015,95116.0,95115.0,0.47364108]
[1736507708711,0.0025,95116.0,95115.0,0.27415305]
[1736507708916,0.0025,95116.0,95115.0,0.27215305]
[1736507708917,0.0015,95116.0,95115.0,0.27215305]
[1736507709091,0.0005,95116.0,95115.0,0.27115305]
[1736507709468,0.0015,95116.0,95115.0,0.27215305]
[1736507709654,0.0025,95116.0,95115.0,0.27415305]
[1736507709854,0.0015,95116.0,95115.0,0.27315305]
[1736507710076,0.0015,95116.0,95115.0,0.26583305]
[1736507710432,0.0025,95116.0,95115.0,0.16985329]
[1736507710974,0.0015,95116.0,95115.0,0.15075032]
[1736507711172,0.0015,95116.0,95115.0,0.16007032]
[1736507711376,0.0025,95116.0,95115.0,0.15907032]
[1736507711582,0.0005,95116.0,95115.0,0.15707032]
[1736507711876,0.0005,95116.0,95115.0,0.16007032]
[1736507712275,0.0005,95116.0,95115.0,0.26337008]
[1736507712714,0.0005,95116.0,95115.0,0.26137008]
[1736507712916,0.0005,95116.0,95115.0,0.26237008]
[1736507713362,0.0005,95116.0,95115.0,0.26137008]
[1736507714180,0.0005,95116.0,95115.0,0.26337008]
[1736507714754,0.0005,95116.0,95115.0,0.26437008]
[1736507715966,0.0005,95116.0,95115.0,0.25705008]
[1736507716170,0.0005,95116.0,95115.0,0.26437008]
[1736507716392,0.0005,95116.0,95115.0,0.13015008]
[1736507716619,0.0005,95116.0,95115.0,0.03317032]
[1736507717141,0.0005,95116.0,95115.0,0.01032]
[1736507717342,0.0005,95116.0,95115.0,0.001]
[1736507717565,0.0005,95116.0,95115.0,0.003]
[1736507718310,0.210271,95115.0,95110.0,0.0133836]
[1736507719345,0.083,95114.0,95110.0,0.0133836]
[1736507719581,0.210271,95115.0,95110.0,0.0133836]
[1736507719783,0.0015,95116.0,95110.0,0.0133836]
[1736507719940,0.0015,95116.0,95110.0,0.0925836]
[1736507720144,0.0015,95116.0,95111.0,0.02284064]
[1736507720339,0.0015,95116.0,95112.0,0.10429976]
[1736507720625,0.0015,95116.0,95113.0,0.02284178]
[1736507720775,0.0015,95116.0,95114.0,0.10429976]
[1736507720979,0.0005,95116.0,95115.0,0.210271]
[1736507721186,0.0005,95116.0,95115.0,0.33741389]
[1736507721343,0.0005,95116.0,95115.0,0.41451389]
[1736507722591,0.0005,95116.0,95115.0,0.21401471]
[1736507722811,0.0005,95116.0,95115.0,0.21501471]
[1736507723638,0.0015,95116.0,95115.0,0.20724289]
[1736507723901,0.0005,95116.0,95115.0,0.20524289]
[1736507724175,0.0005,95116.0,95115.0,0.21456289]
[1736507724331,0.0005,95116.0,95115.0,0.21356289]
[1736507724536,0.0005,95116.0,95115.0,0.21456289]
[1736507725042,0.0005,95116.0,95115.0,0.21156289]
[1736507725240,0.0005,95116.0,95115.0,0.21356289]
[1736507725596,0.0005,95116.0,95115.0,0.22433471]
[1736507726130,0.0005,95116.0,95115.0,0.22333471]
[1736507726591,0.0005,95116.0,95115.0,0.22133471]
[1736507727018,0.0015,95116.0,95115.0,0.22333471]
[1736507727355,0.0015,95116.0,95115.0,0.22433471]
[1736507728079,0.0015,95116.0,95115.0,0.22333471]
[1736507728210,0.0015,95116.0,95115.0,0.22433471]
[1736507731783,0.0005,95116.0,95115.0,0.21501471]
[1736507731990,0.0015,95116.0,95115.0,0.22433471]
[1736507732186,0.0015,95116.0,95115.0,0.22333471]
[1736507733683,0.0015,95116.0,95115.0,0.22433471]
[1736507734655,0.0015,95116.0,95115.0,0.04293495]
[1736507735341,0.0005,95116.0,95115.0,0.03993495]
[1736507735559,0.0005,95116.0,95115.0,0.03261495]
[1736507735762,0.01208572,95116.0,95115.0,0.04193495]
[1736507735981,0.01208572,95116.0,95115.0,0.01909182]
[1736507736178,0.01208572,95116.0,95115.0,0.00932]
[1736507736605,0.01208572,95116.0,95115.0,0.002]
[1736507737306,0.01108572,95116.0,95110.0,0.0207036]
[1736507737528,0.0005,95116.0,95115.0,0.001]
[1736507737960,0.0005,95116.0,95110.0,0.0207036]
[1736507738188,0.0005,95116.0,95115.0,0.001]
[1736507738388,0.0005,95116.0,95115.0,0.002]
[1736507738595,0.0005,95116.0,95115.0,0.01180643]
[1736507738814,0.0005,95116.0,95115.0,0.01080643]
[1736507740836,0.14816944,95117.0,95115.0,0.002]
[1736507741610,0.14816944,95117.0,95115.0,0.001]
[1736507741814,0.210269,95116.0,95110.0,0.0207036]
[1736507742023,0.210269,95116.0,95110.0,0.0133836]
[1736507742229,0.210269,95116.0,95115.0,0.002]
[1736507742798,0.14816944,95117.0,95115.0,0.001]
[1736507743523,0.14816944,95117.0,95110.0,0.0217036]
[1736507743776,0.14816944,95117.0,95110.0,0.0227036]
[1736507744172,0.14816944,95117.0,95110.0,0.0217036]
[1736507744344,0.14816944,95117.0,95115.0,0.001]
[1736507745168,0.3274,95116.0,95115.0,0.001]
[1736507746176,0.210271,95115.0,95110.0,0.0207036]
[1736507747018,0.210271,95115.0,95111.0,0.00982245]
[1736507747999,0.210271,95115.0,95112.0,0.00982245]
[1736507748984,0.210271,95115.0,95113.0,0.00982245]
[1736507749506,0.15,95114.0,95113.0,0.00982245]
[1736507750074,0.210276,95113.0,95112.0,0.001]
[1736507750288,0.210276,95113.0,95112.0,0.002]
[1736507750712,0.210276,95113.0,95112.0,0.01082228]
[1736507750911,0.210276,95113.0,95112.0,0.00982228]
[1736507751120,0.537676,95113.0,95112.0,0.00982228]
[1736507752548,0.537676,95113.0,95112.0,0.01082228]
[1736507752780,0.3274,95113.0,95112.0,0.01082228]
[1736507753427,0.3264,95113.0,95112.0,0.01082228]
[1736507754169,0.3264,95113.0,95112.0,0.01182228]
[1736507754548,0.3264,95113.0,95112.0,0.01082228]
[1736507754933,0.3264,95113.0,95112.0,0.01182228]
[1736507755516,0.3264,95113.0,95112.0,0.01082228]
[1736507755734,0.3264,95113.0,95112.0,0.01182228]
[1736507757975,0.3264,95113.0,95112.0,0.01914228]
[1736507760205,0.3264,95113.0,95112.0,0.00932]
[1736507764748,0.3264,95113.0,95112.0,0.10699004]
[1736507765012,0.3264,95113.0,95112.0,0.08872]
[1736507765189,0.3264,95113.0,95112.0,0.10699004]
[1736507765635,0.3264,95113.0,95112.0,0.2112898]
[1736507765984,0.3264,95113.0,95112.0,0.1318898]
[1736507766195,0.3264,95113.0,95112.0,0.1245698]
[1736507766504,0.3264,95113.0,95112.0,0.1318898]
[1736507771958,0.3264,95113.0,95112.0,0.02027004]
[1736507772157,0.53911742,95113.0,95112.0,0.02027004]
[1736507772406,0.53911742,95113.0,95112.0,0.002]
[1736507772602,0.5565,95113.0,95112.0,0.002]
[1736507772752,0.5565,95113.0,95112.0,0.001]
[1736507773006,0.360278,95112.0,95110.0,0.0133836]
[1736507774411,0.366278,95112.0,95110.0,0.0133836]
[1736507775593,0.368278,95112.0,95110.0,0.0133836]
[1736507778173,0.4764,95111.0,95110.0,0.0133836]
[1736507779633,0.4824,95111.0,95110.0,0.0133836]
[1736507780951,0.4764,95111.0,95110.0,0.0133836]
[1736507781090,0.4774,95111.0,95110.0,0.0133836]
[1736507781295,0.54687294,95111.0,95110.0,0.0133836]
[1736507781751,0.54587294,95111.0,95110.0,0.0133836]
[1736507781954,0.54687294,95111.0,95110.0,0.0133836]
[1736507782158,0.4824,95111.0,95110.0,0.0133836]
[1736507782603,0.4764,95111.0,95110.0,0.0133836]
[1736507782827,0.4774,95111.0,95110.0,0.0133836]
[1736507783050,0.4814,95111.0,95110.0,0.0133836]
[1736507783260,0.4774,95111.0,95110.0,0.0133836]
[1736507783457,0.4824,95111.0,95110.0,0.0133836]
[1736507785331,0.5582,95111.0,95110.0,0.0133836]
[1736507785957,0.5812,95111.0,95110.0,0.0133836]
[1736507786155,0.6265,95111.0,95110.0,0.0133836]
[1736507786364,0.83133852,95111.0,95110.0,0.0133836]
[1736507786570,0.83079976,95111.0,95110.0,0.0133836]
[1736507786873,0.93509952,95111.0,95110.0,0.0133836]
[1736507787224,0.93009952,95111.0,95110.0,0.0133836]
[1736507787634,0.93509952,95111.0,95110.0,0.0133836]
[1736507788065,0.93709952,95111.0,95110.0,0.0133836]
[1736507789633,0.360315,95095.0,95092.0,8.53e-05]
[1736507789832,0.3963465,95095.0,95092.0,8.53e-05]
[1736507790404,0.360315,95095.0,95092.0,8.53e-05]
[1736507790833,0.360315,95095.0,95094.0,0.00023108]
[1736507792281,0.686715,95095.0,95094.0,0.00023108]
[1736507793074,0.709715,95095.0,95094.0,0.00023108]
[1736507793280,0.7672882,95095.0,95094.0,0.00023108]
[1736507793484,0.87658796,95095.0,95094.0,0.00023108]
[1736507793691,0.98088772,95095.0,95094.0,0.00023108]
[1736507793894,0.97588772,95095.0,95094.0,0.00023108]
[1736507794512,0.97688772,95095.0,95094.0,0.00023108]
[1736507794895,0.5483882,95095.0,95094.0,0.00023108]
[1736507795058,0.3370732,95095.0,95094.0,0.00023108]
[1736507795280,0.3264,95095.0,95094.0,0.00023108]
[1736507795516,0.3284,95095.0,95094.0,0.08333108]
[1736507795941,0.3324,95095.0,95094.0,0.08333108]
[1736507796143,0.3264,95095.0,95094.0,0.08333108]
[1736507796564,0.3274,95095.0,95094.0,0.08333108]
[1736507798205,0.3264,95095.0,95094.0,0.08333108]
[1736507798775,0.4764,95095.0,95094.0,0.08333108]
[1736507798980,0.4764,95095.0,95094.0,0.00023108]
[1736507799387,0.55260945,95095.0,95094.0,0.00023108]
[1736507799964,0.4764,95095.0,95094.0,0.00023108]
[1736507800750,0.4804,95095.0,95094.0,0.00023108]
[1736507800931,0.4804,95095.0,95094.0,0.02509894]
[1736507801140,0.4764,95095.0,95094.0,0.02509894]
[1736507803353,0.3264,95095.0,95094.0,0.02509894]
[1736507804034,0.3264,95095.0,95094.0,0.00023108]
[1736507804269,0.3264,95095.0,95094.0,0.00755108]
[1736507806333,0.3264,95095.0,95094.0,0.03240627]
[1736507806557,0.3264,95095.0,95094.0,0.00755108]
[1736507806766,0.3264,95095.0,95094.0,0.11040627]
[1736507806972,0.3264,95095.0,95094.0,0.08555108]
[1736507807189,0.3264,95095.0,95094.0,0.11040627]
[1736507808088,0.3264,95095.0,95094.0,0.02508627]
[1736507808512,0.4764,95095.0,95094.0,0.00023108]
[1736507809953,0.4784,95095.0,95094.0,0.00023108]
[1736507810161,0.688715,95095.0,95094.0,0.00023108]
[1736507811686,0.79301476,95095.0,95094.0,0.00023108]
[1736507812336,0.688715,95095.0,95094.0,0.00023108]
[1736507812538,0.686715,95095.0,95094.0,0.00023108]
[1736507812854,0.689715,95095.0,95094.0,0.00023108]
[1736507818634,0.767315,95095.0,95094.0,0.00023108]
[1736507819249,0.764315,95095.0,95094.0,0.00023108]
[1736507819449,0.86961476,95095.0,95094.0,0.00023108]
[1736507820068,0.87261476,95095.0,95094.0,0.00023108]
[1736507820273,0.86961476,95095.0,95094.0,0.00023108]
[1736507820723,0.87461476,95095.0,95094.0,0.00023108]
[1736507820921,0.765315,95095.0,95094.0,0.00023108]
[1736507821328,0.771315,95095.0,95094.0,0.00023108]
[1736507821488,0.94581476,95095.0,95094.0,0.00023108]
[1736507821704,0.842515,95095.0,95094.0,0.00023108]
[1736507822125,0.819515,95095.0,95094.0,0.00023108]
[1736507822326,0.692715,95095.0,95094.0,0.00023108]
[1736507822554,0.694715,95095.0,95094.0,0.00023108]
[1736507822874,0.688715,95095.0,95094.0,0.00023108]
[1736507823077,0.4764,95084.0,95081.0,0.07721638]
[1736507823325,0.4764,95084.0,95081.0,0.07736242]
[1736507823945,0.210342,95083.0,95081.0,0.07736242]
[1736507824811,0.210342,95083.0,95081.0,0.00014604]
[1736507824989,0.4764,95084.0,95081.0,0.00014604]
[1736507825870,0.210342,95083.0,95081.0,0.00014604]
[1736507827223,0.211342,95083.0,95081.0,0.00014604]
[1736507828644,0.001,95083.0,95081.0,0.00014604]
[1736507829047,0.3264,95082.0,95081.0,0.00014604]
[1736507829247,0.3264,95082.0,95081.0,0.02506696]
[1736507830284,0.3264,95082.0,95081.0,0.25646672]
[1736507830512,0.3274,95082.0,95081.0,0.25646672]
[1736507830886,0.001,95082.0,95081.0,0.25646672]
[1736507831316,0.01058578,95097.0,95083.0,0.289642]
[1736507831491,0.15,95099.0,95085.0,0.210338]
[1736507831715,0.15,95099.0,95086.0,0.10429976]
[1736507831897,0.15,95099.0,95086.0,0.12948709]
[1736507832261,0.15,95099.0,95087.0,0.0793]
[1736507832389,0.15,95099.0,95088.0,0.12948046]
[1736507832613,0.15,95099.0,95088.0,0.0251807]
[1736507832614,0.210329,95089.0,95088.0,0.0251807]
[1736507832812,0.16146804,95099.0,95081.0,0.00014604]
[1736507833012,0.210331,95088.0,95081.0,0.00014604]
[1736507833268,0.210331,95088.0,95082.0,0.0793]
[1736507833763,0.002,95089.0,95082.0,0.0793]
[1736507833928,0.002,95089.0,95083.0,0.15209976]
[1736507834129,0.15,95097.0,95083.0,0.17729307]
[1736507834282,0.001,95088.0,95083.0,0.38868568]
[1736507834478,0.001,95088.0,95083.0,0.38763407]
[1736507834688,0.001,95088.0,95086.0,0.0793]
[1736507834951,0.001,95088.0,95087.0,0.31463276]
[1736507835147,0.001,95088.0,95087.0,0.3398128]
[1736507835609,0.001,95088.0,95087.0,0.1294798]
[1736507835827,0.210331,95088.0,95087.0,0.02518004]
[1736507836215,0.210331,95088.0,95086.0,0.001]
[1736507837400,0.210327,95090.0,95081.0,0.00014604]
[1736507837603,0.210344,95082.0,95081.0,0.00014604]
[1736507838221,0.210327,95090.0,95081.0,0.02534303]
[1736507838394,0.210327,95090.0,95081.0,0.00014604]
[1736507838739,0.210327,95090.0,95082.0,0.10429976]
[1736507838740,0.001,95090.0,95082.0,0.10429976]
[1736507838880,0.003,95088.0,95082.0,0.10429976]
[1736507839247,0.01053454,95094.0,95083.0,0.02519035]
[1736507839442,0.005,95090.0,95083.0,0.12949011]
[1736507839651,0.005,95090.0,95084.0,0.10429976]
[1736507839848,0.001,95090.0,95085.0,0.0802]
[1736507840048,0.001,95090.0,95086.0,0.10429976]
[1736507840578,0.001,95090.0,95087.0,0.02517708]
[1736507841363,0.15,95096.0,95087.0,0.02517708]
[1736507841569,0.15,95096.0,95088.0,0.10429976]
[1736507841965,0.15,95096.0,95089.0,0.02517045]
[1736507842555,0.3264,95097.0,95089.0,0.02517045]
[1736507844115,0.3264,95097.0,95091.0,0.0482]
[1736507844546,0.3264,95097.0,95092.0,0.0251605]
[1736507845745,0.536712,95097.0,95092.0,0.0251605]
[1736507848757,0.3264,95097.0,95093.0,0.10429976]
[1736507849159,0.3264,95097.0,95094.0,0.02515387]
[1736507849388,0.3264,95097.0,95094.0,0.12945363]
[1736507849590,0.3264,95097.0,95095.0,0.10429976]
[1736507849792,0.3264,95097.0,95095.0,0.18479976]
[1736507849952,0.3264,95097.0,95096.0,0.0251458]
[1736507850150,0.3264,95097.0,95096.0,0.12944556]
[1736507857354,0.3264,95097.0,95096.0,0.0251458]
[1736507857565,0.4764,95097.0,95096.0,0.0251458]
[1736507857775,0.210335,95087.0,95079.0,0.00732]
[1736507857980,0.42067,95087.0,95079.0,0.00732]
[1736507858199,0.42067,95087.0,95082.0,0.02102797]
[1736507858424,0.42067,95087.0,95079.0,0.00732]
[1736507858946,0.3264,95086.0,95079.0,0.00732]
[1736507860186,0.3274,95086.0,95079.0,0.00732]
[1736507860388,0.3264,95086.0,95079.0,0.00732]
[1736507861006,0.210338,95085.0,95079.0,0.00732]
[1736507861825,0.420677,95085.0,95079.0,0.00732]
[1736507862960,0.44259871,95085.0,95077.0,0.00732]
[1736507863360,0.423677,95085.0,95077.0,0.00732]
[1736507863872,0.43423438,95085.0,95077.0,0.00732]
[1736507864977,0.3264,95082.0,95077.0,0.00732]
[1736507866384,0.3274,95082.0,95077.0,0.00732]
[1736507868360,0.6057,95082.0,95073.0,8.53e-05]
[1736507868565,0.70999976,95082.0,95073.0,8.53e-05]
[1736507869097,0.70899976,95082.0,95073.0,8.53e-05]
[1736507869504,0.70999976,95082.0,95073.0,8.53e-05]
[1736507869825,0.5558,95082.0,95073.0,8.53e-05]
[1736507870000,0.4764,95082.0,95073.0,8.53e-05]
[1736507870206,0.4844,95082.0,95073.0,8.53e-05]
[1736507871428,0.4874,95082.0,95073.0,8.53e-05]
[1736507871661,0.4794,95082.0,95073.0,8.53e-05]
[1736507871855,0.4844,95082.0,95073.0,8.53e-05]
[1736507872183,0.4764,95082.0,95073.0,8.53e-05]
[1736507872347,0.4764,95082.0,95080.0,0.00732]
[1736507872550,0.4794,95082.0,95080.0,0.00732]
[1736507873331,0.4764,95082.0,95080.0,0.00732]
[1736507873650,0.4784,95082.0,95080.0,0.00732]
[1736507874873,0.4764,95082.0,95080.0,0.00732]
[1736507875092,0.56854792,95082.0,95080.0,0.00732]
[1736507875470,0.56654792,95082.0,95080.0,0.00732]
[1736507875651,0.57154792,95082.0,95080.0,0.00732]
[1736507876217,0.56654792,95082.0,95080.0,0.00732]
[1736507876440,0.57154792,95082.0,95080.0,0.00732]
[1736507876647,0.57154792,95082.0,95076.0,0.0074054]
[1736507877944,0.82214768,95082.0,95076.0,8.54e-05]
[1736507878088,0.82314768,95082.0,95076.0,8.54e-05]
[1736507878299,0.82914768,95082.0,95076.0,8.54e-05]
[1736507878646,0.82214768,95082.0,95076.0,8.54e-05]
[1736507878843,0.5641,95082.0,95076.0,8.54e-05]
[1736507879087,0.5611,95082.0,95076.0,8.54e-05]
[1736507879555,0.5581,95082.0,95076.0,8.54e-05]
[1736507879759,0.5611,95082.0,95076.0,8.54e-05]
[1736507879968,0.5701,95082.0,95076.0,8.54e-05]
[1736507880316,0.67439976,95082.0,95076.0,8.54e-05]
[1736507881555,0.6633336,95082.0,95076.0,8.54e-05]
[1736507881752,0.6603336,95082.0,95076.0,8.54e-05]
[1736507881951,0.6683336,95082.0,95076.0,8.54e-05]
[1736507882182,0.6713336,95082.0,95076.0,8.54e-05]
[1736507882514,0.6683336,95082.0,95076.0,8.54e-05]
[1736507882736,0.55603384,95082.0,95076.0,8.54e-05]
[1736507882944,0.56803384,95082.0,95076.0,8.54e-05]
[1736507883296,0.56503384,95082.0,95076.0,8.54e-05]
[1736507883715,0.56803384,95082.0,95076.0,8.54e-05]
[1736507885788,0.55903384,95082.0,95076.0,8.54e-05]
[1736507885985,0.15,95081.0,95073.0,8.53e-05]
[1736507886164,0.360362,95074.0,95073.0,0.00013386]
[1736507887427,0.365362,95074.0,95073.0,0.00013386]
[1736507887634,0.691762,95074.0,95073.0,0.00013386]
[1736507887949,0.4814,95074.0,95073.0,0.07903386]
[1736507888993,0.3264,95074.0,95073.0,0.08635386]
[1736507889177,0.3324,95074.0,95073.0,0.08635386]
[1736507889371,0.3324,95074.0,95073.0,0.00745386]
[1736507889581,0.3264,95074.0,95073.0,0.00745386]
[1736507889782,0.3274,95074.0,95073.0,0.00745386]
[1736507889993,0.3264,95074.0,95073.0,0.00745386]
[1736507894892,0.3264,95074.0,95073.0,0.11175362]
[1736507895029,0.3264,95074.0,95073.0,0.18316008]
[1736507895435,0.3294,95074.0,95073.0,0.26356008]
[1736507895838,0.3264,95074.0,95073.0,0.26356008]
[1736507897077,0.4764,95074.0,95073.0,0.02204032]
[1736507897295,0.686762,95074.0,95073.0,0.00013386]
[1736507898159,0.697455,95074.0,95073.0,0.00013386]
[1736507898513,0.686762,95074.0,95073.0,0.00013386]
[1736507899676,0.4764,95074.0,95073.0,0.07863386]
[1736507899850,0.4784,95074.0,95073.0,0.07863386]
[1736507901069,0.3284,95074.0,95073.0,0.07863386]
[1736507901507,0.3264,95074.0,95073.0,0.07863386]
[1736507902209,0.3264,95074.0,95073.0,0.08595386]
[1736507902820,0.3264,95074.0,95073.0,0.00013386]
[1736507903129,0.3264,95074.0,95073.0,0.00745386]
[1736507903829,0.3264,95074.0,95073.0,0.0293616]
[1736507904037,0.3264,95074.0,95073.0,0.0785616]
[1736507907749,0.3264,95074.0,95073.0,0.18286136]
[1736507915808,0.210338,95085.0,95073.0,0.18286136]
[1736507916032,0.210338,95085.0,95074.0,0.10429976]
[1736507916212,0.3264,95086.0,95074.0,0.10429976]
[1736507916440,0.3264,95086.0,95075.0,0.02189685]
[1736507916669,0.3264,95086.0,95076.0,0.10429976]
[1736507916870,0.3264,95086.0,95077.0,0.02189021]
[1736507917096,0.3264,95086.0,95078.0,0.10429976]
[1736507917317,0.3264,95086.0,95079.0,0.02188358]
[1736507917515,0.3264,95086.0,95079.0,0.12618334]
[1736507918367,0.003,95085.0,95079.0,0.12618334]
[1736507918832,0.3264,95086.0,95079.0,0.12618334]
[1736507919034,0.3294,95086.0,95079.0,0.12618334]
[1736507919435,0.3264,95086.0,95079.0,0.12618334]
[1736507920047,0.3264,95086.0,95080.0,0.0813]
[1736507920466,0.3264,95086.0,95081.0,0.02187694]
[1736507920873,0.002,95085.0,95081.0,0.02187694]
[1736507921077,0.3264,95086.0,95081.0,0.02187694]
[1736507921491,0.3284,95086.0,95081.0,0.02187694]
[1736507921835,0.3264,95086.0,95081.0,0.02187694]
[1736507922049,0.002,95085.0,95081.0,0.02187694]
[1736507922403,0.3264,95086.0,95081.0,0.02187694]
[1736507922623,0.3284,95086.0,95081.0,0.02187694]
[1736507922838,0.3284,95086.0,95082.0,0.10429976]
[1736507923022,0.3284,95086.0,95082.0,0.31464276]
[1736507923226,0.3284,95086.0,95083.0,0.0218639]
[1736507923477,0.3284,95086.0,95084.0,0.10429976]
[1736507923881,0.3284,95086.0,95085.0,0.02185662]
[1736507924192,0.3284,95086.0,95085.0,0.12615638]
[1736507924712,0.3264,95086.0,95085.0,0.12615638]
[1736507925049,0.3264,95086.0,95085.0,0.14759983]
[1736507925498,0.3264,95086.0,95085.0,0.12615638]
[1736507926139,0.32019132,95086.0,95085.0,0.12615638]
[1736507932420,0.32019132,95086.0,95085.0,0.13347638]
[1736507935083,0.210335,95086.0,95085.0,0.02917662]
[1736507935481,0.210335,95086.0,95085.0,0.00732]
[1736507936573,0.210349,95080.0,95079.0,0.04]
[1736507936780,0.210349,95080.0,95079.0,0.04732]
[1736507937567,0.290049,95080.0,95079.0,0.04732]
[1736507937771,0.210349,95080.0,95079.0,0.04732]
[1736507939609,0.212349,95080.0,95079.0,0.04732]
[1736507939931,0.210349,95080.0,95079.0,0.04732]
[1736507940309,0.420671,95086.0,95079.0,0.04732]
[1736507940515,0.210345,95082.0,95079.0,0.04732]
[1736507941353,0.001,95080.0,95079.0,0.04732]
[1736507941562,0.001,95080.0,95079.0,0.04]
[1736507941765,0.42069,95082.0,95079.0,0.04]
[1736507941972,0.42269,95082.0,95079.0,0.04]
[1736507942352,0.42069,95082.0,95079.0,0.04]
[1736507942559,0.214349,95080.0,95079.0,0.04]
[1736507942953,0.210349,95080.0,95079.0,0.04]
[1736507944437,0.360349,95080.0,95079.0,0.04]
[1736507944764,0.364349,95080.0,95079.0,0.04]
[1736507945828,0.68554032,95080.0,95079.0,0.04]
[1736507947922,0.68154032,95080.0,95079.0,0.04]
[1736507948127,0.68054032,95080.0,95079.0,0.04]
[1736507948326,0.68154032,95080.0,95079.0,0.04]
[1736507948526,0.68554032,95080.0,95079.0,0.04]
[1736507950147,0.78984008,95080.0,95079.0,0.04]
[1736507950360,0.68554032,95080.0,95079.0,0.04]
[1736507951699,0.68054032,95080.0,95079.0,0.04]
[1736507951903,0.76354032,95080.0,95079.0,0.04]
[1736507952108,0.420725,95074.0,95071.0,4.6e-07]
[1736507952463,0.60249108,95080.0,95057.0,7e-05]
[1736507952464,0.436797,95058.0,95057.0,7e-05]
[1736507952679,0.436797,95058.0,95057.0,0.00021573]
[1736507952855,0.360397,95058.0,95057.0,0.02249035]
[1736507953069,0.360397,95058.0,95057.0,0.00021573]
[1736507953651,0.68058832,95058.0,95057.0,0.00021573]
[1736507954874,0.68458832,95058.0,95057.0,0.00021573]
[1736507955273,0.68658832,95058.0,95057.0,0.00021573]
[1736507955699,0.68058832,95058.0,95057.0,0.00021573]
[1736507955926,0.78488808,95058.0,95057.0,0.00021573]
[1736507956097,0.93090244,95058.0,95057.0,0.00021573]
[1736507956301,1.01310244,95058.0,95057.0,0.00021573]
[1736507956528,1.15240244,95058.0,95057.0,0.00021573]
[1736507956728,0.68062232,95043.0,95042.0,8.53e-05]
[1736507956939,0.85192635,95043.0,95042.0,0.00020796]
[1736507957932,1.02702611,95043.0,95042.0,0.00020796]
[1736507958233,1.12702611,95043.0,95042.0,0.00020796]
[1736507958360,1.13752512,95043.0,95042.0,0.00020796]
[1736507958947,1.14852512,95043.0,95042.0,0.00020796]
[1736507959083,1.13952512,95043.0,95042.0,0.00020796]
[1736507959266,1.14652512,95043.0,95042.0,0.00020796]
[1736507959485,1.15152512,95043.0,95042.0,0.00020796]
[1736507959707,0.47019132,95041.0,95040.0,8.53e-05]
[1736507959913,0.47019132,95041.0,95040.0,0.0001773]
[1736507961158,0.009,95043.0,95041.0,0.205435]
[1736507961363,0.32019132,95069.0,95049.0,0.210415]
[1736507961569,0.32003216,95069.0,95051.0,0.0812]
[1736507961778,0.210375,95068.0,95051.0,0.17649976]
[1736507962039,0.210375,95068.0,95052.0,0.02287833]
[1736507962583,0.15,95067.0,95052.0,0.02287833]
[1736507963039,0.214375,95068.0,95052.0,0.02287833]